[Event "Israeli U18-Team-ch 2024"]
[Site "Rishon LeZion"]
[Date "2024.08.01"]
[Round "3.7"]
[White "Dezent, Eyal"]
[Black "Hasson Schrager, Shalev"]
[Result "1-0"]
[ECO "A45"]
[WhiteElo "2076"]
[BlackElo "1972"]
[Annotator "RC"]
[PlyCount "75"]
[EventDate "2024.08.01"]
[EventType "team-tourn"]
[EventCountry "ISR"]
[SourceTitle "playchess.com"]
[Source "ChessBase"]
[SourceQuality "1"]
[TimeControl "3000+10"]

1. d4 {[%emt 0:00:16]} Nf6 {[%emt 0:00:03]} 2. Bg5 {[%emt 0:00:30]} Ne4 {[%emt 0:00:07]} 3. Bf4 {[%emt 0:00:04]} d5 {[%emt 0:00:09]} 4. e3 {[%emt 0:00:08]} e6 {[%emt 0:00:07]} 5. Nd2 {[%emt 0:00:46]} Nxd2 {[%emt 0:00:56]} 6. Qxd2 {[%emt 0:00:01]} Bd6 {[%emt 0:00:13]} 7. Nf3 {[%emt 0:01:15]} O-O {[%emt 0:00:08]} 8. Bd3 {[%emt 0:00:33]} Nd7 {[%emt 0:00:10]} 9. O-O {[%emt 0:01:40]} Bxf4 {[%emt 0:49:47]} 10. exf4 {[%emt 0:00:02]} c5 {[%emt 0:00:00]} 11. c3 {[%emt 0:01:48]} b6 {[%emt 0:00:00]} 12. Ne5 {[%emt 0:03:46]} Nxe5 {[%emt 0:00:00]} 13. fxe5 {[%emt 0:00:44]} Bd7 {[%emt 0:00:00]} 14. f4 {[%emt 0:00:42]} f5 {[%emt 0:00:00]} 15. exf6 {[%emt 0:01:07]} Qxf6 {[%emt 0:00:00]} 16. Qe3 {[%emt 0:04:52]} cxd4 {[%emt 0:00:00]} 17. cxd4 {[%emt 0:00:25]} Rae8 {[%emt 0:00:00]} 18. Qe5 {[%emt 0:03:49]} Qxe5 {[%emt 0:00:00]} 19. fxe5 {[%emt 0:00:31]} Rxf1+ {[%emt 0:00:00]} 20. Kxf1 {[%emt 0:01:52]} Rc8 {[%emt 0:00:00]} 21. Ke2 {[%emt 0:01:17]} Be8 {[%emt 0:00:00]} 22. Kd2 {[%emt 0:05:02]} Bg6 {[%emt 0:00:00]} 23. Bxg6 {[%emt 0:01:03]} hxg6 {[%emt 0:00:00]} 24. Rc1 {[%emt 0:02:33]} Rxc1 {[%emt 0:00:00]} 25. Kxc1 {[%emt 0:00:00]} g5 {[%emt 0:00:00]} 26. Kd2 {[%emt 0:19:44]} Kf7 {[%emt 0:00:00]} 27. h3 {[%emt 0:00:00]} Kg6 {[%emt 0:00:00]} 28. g4 {[%emt 0:00:00]} Kf7 {[%emt 0:00:00]} 29. Kc3 {[%emt 0:00:00]} Ke7 {[%emt 0:00:00]} 30. Kb4 {[%emt 0:00:00]} Kd7 {[%emt 0:00:00]} 31. Kb5 {[%emt 0:00:00]} Kc7 {[%emt 0:00:00]} 32. Ka6 {[%emt 0:00:00]} Kb8 {[%emt 0:00:00]} 33. a4 {[%emt 0:00:00]} Ka8 {[%emt 0:00:00]} 34. a5 bxa5 {[%emt 0:04:10]} 35. Kxa5 {[%emt 0:01:30]} Kb8 {[%emt 0:00:00]} 36. Ka6 {[%emt 0:00:00]} Ka8 {[%emt 0:00:00]} 37. b4 {[%emt 0:00:00]} Kb8 {[%emt 0:00:00]} 38. b5 {[%emt 0:00:00]} 1-0

[Event "Israeli U18-Team-ch 2024"]
[Site "Rishon LeZion"]
[Date "2024.08.01"]
[Round "3.9"]
[White "Menahem, Adi"]
[Black "Levin, Guy"]
[Result "0-1"]
[ECO "D07"]
[WhiteElo "2228"]
[BlackElo "2470"]
[Annotator "TA"]
[PlyCount "74"]
[EventDate "2024.08.01"]
[EventType "team-tourn"]
[EventCountry "ISR"]
[SourceTitle "playchess.com"]
[Source "ChessBase"]
[SourceQuality "1"]
[TimeControl "3000+10"]

{[%evp 12,74,43,32,28,21,27,10,0,18,10,-33,-31,-41,-32,-57,-26,-58,-56,-75,0,0,-25,0,0,0,0,0,15,14,43,54,64,56,58,17,34,0,0,0,13,-12,-10,-17,0,-27,-29,-171,-177,-260,-271,-255,-275,-277,-267,-301,-299,-369,-373,-366,-350,-377,-366,-371,-357]} 1. d4 {[%emt 0:00:06]} d5 {[%emt 0:00:06]} 2. c4 {[%emt 0:00:05]} dxc4 {[%emt 0:00:04]} 3. Nf3 {[%emt 0:00:08]} Nf6 {[%emt 0:00:10]} 4. e3 {[%emt 0:00:05]} Bg4 {[%emt 0:01:44]} 5. Bxc4 {[%emt 0:00:59]} e6 {[%emt 0:00:10]} 6. Nc3 {[%emt 0:01:25]} Nc6 {[%emt 0:00:19]} 7. O-O {[%emt 0:02:28]} Bd6 {[%emt 0:01:30]} 8. Bb5 {[%emt 0:02:15]} O-O {[%emt 0:00:44]} 9. Bxc6 {[%emt 0:02:24]} bxc6 {[%emt 0:00:02] The position is equal.} 10. e4 {[%emt 0:01:13][%cal Be3e4,Be4e5][%mdl 32] [#] aiming for e5.} Bb4 {[%emt 0:01:10]} 11. e5 {[%emt 0:04:36]} Nd5 {[%emt 0:00:33]} 12. Ne4 {[%emt 0:02:33]} Be7 {[%emt 0:09:31]} 13. h3 {[%emt 0:04:00]} Bh5 {[%emt 0:00:18]} 14. Ng3 {[%emt 0:00:55]} Bg6 {[%emt 0:00:17]} 15. Qa4 {[%emt 0:01:22][%cal Of1d1]} Nb4 {[%emt 0:11:49]} ({Better is} 15... a5 $17 {Hoping for ...Nb4.} 16. a3 Qd7) 16. Bd2 $36 {[%emt 0:03:56][%mdl 2048] White has good play.} Rb8 {[%emt 0:00:01]} 17. b3 {[%emt 0:05:17][%cal Od2b4]} Rb6 {[%emt 0:05:38]} 18. Bxb4 $1 {[%emt 0:02:03]} Bxb4 {[%emt 0:00:04]} 19. Rac1 {[%emt 0:02:29]} (19. Qxa7 Qc8 20. a3 Ra6 $17) 19... a5 {[%emt 0:02:49]} 20. Rfd1 {[%emt 0:05:48] Repels Bd3} (20. Rxc6 Bd3 21. Rc4 Bxc4 22. bxc4 Qe8 $15 (22... c5 23. a3 $11)) 20... f6 {[%emt 0:00:01]} 21. a3 {[%emt 0:02:03]} (21. Rxc6 $2 Be8 22. Rdc1 Rxc6 (22... Bxc6 $2 23. Rxc6 Qd7 24. Rc2 $19) (22... Qd5 $2 23. R6c5 $19) 23. Rxc6 Qd5 $19 (23... Bxc6 24. Qxc6 Qe7 25. exf6 $15) (23... Bxc6 24. Qxc6 Qe7 25. exf6 $15)) 21... Be7 {[%emt 0:00:05]} 22. exf6 {[%emt 0:01:41]} (22. Rxc6 $2 {too greedy.} Be8 $19) 22... gxf6 {[%emt 0:00:13]} 23. Qxa5 {[%emt 0:00:10] Threatening Qa4.} (23. Rxc6 $2 {perishes.} Be8 24. d5 Rxc6 (24... Bxc6 $2 25. Qg4+ Kh8 26. Ne5 $19) 25. Qg4+ Kh8 $19) 23... Qd5 {[%emt 0:01:37]} 24. Qxd5 {[%emt 0:00:30]} cxd5 {[%emt 0:00:02]} 25. b4 {[%emt 0:00:25]} Bd6 {[%emt 0:00:35]} 26. Re1 {[%emt 0:00:53]} Bf4 {[%emt 0:02:49][%mdl 1024] Black has compensation.} 27. Rc3 {[%emt 0:01:22]} Ra8 {[%emt 0:00:03]} 28. Re2 {[%emt 0:01:41]} Rba6 {[%emt 0:01:35][%cal Og6f7]} 29. Nf1 {[%emt 0:00:51] [#] This costs White the game.} (29. Rb3 $11 {and White is okay.}) 29... Kf7 $1 $19 {[%emt 0:01:45]} 30. g3 {[%emt 0:00:06]} (30. b5 $142 Rxa3 31. Rc6) 30... Rxa3 {[%emt 0:00:05]} 31. Rxa3 {[%emt 0:00:11]} Rxa3 {[%emt 0:00:02]} 32. gxf4 {[%emt 0:00:41] Strongly threatening Re3.} Rxf3 {[%emt 0:00:03] KRB-KRN} 33. Ne3 {[%emt 0:00:45]} Rxf4 {[%emt 0:03:44]} 34. Ra2 {[%emt 0:00:10]} Rxd4 {[%emt 0:01:59]} 35. Ra7 {[%emt 0:00:02]} Rxb4 {[%emt 0:00:03] ...Rb1+ is the strong threat.} 36. Rxc7+ {[%emt 0:00:02]} Ke8 {[%emt 0:00:12]} 37. Ng4 {[%emt 0:00:03]} Rf4 {[%emt 0:00:02] Weighted Error Value: White=0.23 (precise) /Black=0.08 (flawless) .  Mistake:       	White=2     	Black=1      Inaccurate:     	White=5     	Black=2      OK:         	White=10    	Black=16     Best:        	White=1     	Black=1      Strong:       	White=1     	Black=1} 0-1

[Event "Israeli U18-Team-ch 2024"]
[Site "Rishon LeZion"]
[Date "2024.08.01"]
[Round "3.10"]
[White "Uritsky, Yonathan"]
[Black "Rinberg, David"]
[Result "1-0"]
[ECO "B31"]
[WhiteElo "2173"]
[BlackElo "1939"]
[Annotator "RC"]
[PlyCount "107"]
[EventDate "2024.08.01"]
[EventType "team-tourn"]
[EventCountry "ISR"]
[SourceTitle "playchess.com"]
[Source "ChessBase"]
[SourceQuality "1"]
[TimeControl "3000+10"]

1. e4 {[%emt 0:50:20]} c5 {[%emt 0:00:07]} 2. Nf3 {[%emt 0:00:00]} Nc6 {[%emt 0:00:05]} 3. Bb5 {[%emt 0:00:00]} g6 {[%emt 0:00:06]} 4. O-O {[%emt 0:00:00]} Bg7 {[%emt 0:00:24]} 5. c3 {[%emt 0:00:00]} Nf6 {[%emt 0:00:31]} 6. Re1 {[%emt 0:00:00]} O-O {[%emt 0:00:15]} 7. d4 {[%emt 0:00:00]} d5 {[%emt 0:01:04]} 8. e5 {[%emt 0:00:00]} Ne4 {[%emt 0:00:08]} 9. Be3 {[%emt 0:00:00]} Qb6 {[%emt 0:04:22]} 10. Bxc6 {[%emt 0:00:00]} bxc6 {[%emt 0:00:23]} 11. Qc1 {[%emt 0:00:00]} c4 {[%emt 0:01:20]} 12. Nbd2 {[%emt 0:00:00]} Nxd2 {[%emt 0:00:25]} 13. Nxd2 {[%emt 0:00:00]} Bf5 {[%emt 0:00:41]} 14. b3 {[%emt 0:00:00]} Bd3 {[%emt 0:01:00]} 15. Qa3 {[%emt 0:00:00]} e6 {[%emt 0:02:56]} 16. f4 {[%emt 0:00:00]} f6 {[%emt 0:07:31]} 17. bxc4 {[%emt 0:00:00]} dxc4 {[%emt 0:00:33]} 18. Qd6 {[%emt 0:00:00]} Rfe8 {[%emt 0:03:30]} 19. Rab1 {[%emt 0:00:00]} Bxb1 {[%emt 0:02:06]} 20. Rxb1 {[%emt 0:00:00]} Qa6 {[%emt 0:06:23]} 21. Ne4 {[%emt 0:00:00]} Rad8 {[%emt 0:03:21]} 22. Qc7 {[%emt 0:00:00]} Rc8 {[%emt 0:02:02]} 23. Qd7 {[%emt 0:00:00]} Rcd8 {[%emt 0:00:49]} 24. Qc7 {[%emt 0:00:00]} Rc8 {[%emt 0:00:05]} 25. Qb7 {[%emt 0:00:00]} Qxb7 {[%emt 0:04:59]} 26. Rxb7 {[%emt 0:00:00]} f5 {[%emt 0:02:23]} 27. Nd6 {[%emt 0:00:00]} Rb8 {[%emt 0:00:12]} 28. Rxa7 {[%emt 0:00:00]} Ra8 {[%emt 0:00:35]} 29. d5 {[%emt 0:04:40]} Rxa7 {[%emt 0:02:19]} 30. Nxe8 {[%emt 0:00:00]} Re7 {[%emt 0:01:28]} 31. d6 {[%emt 0:00:00]} Rxe8 {[%emt 0:00:49]} 32. Bb6 {[%emt 0:00:00]} Bh6 {[%emt 0:01:19]} 33. d7 {[%emt 0:00:00]} Ra8 {[%emt 0:00:06]} 34. g3 {[%emt 0:00:00]} g5 {[%emt 0:00:00]} 35. a4 {[%emt 0:00:00]} gxf4 {[%emt 0:00:05]} 36. d8=Q+ {[%emt 0:00:00]} Rxd8 {[%emt 0:00:01]} 37. Bxd8 {[%emt 0:00:00]} fxg3 {[%emt 0:00:23]} 38. a5 {[%emt 0:00:00]} gxh2+ {[%emt 0:00:18]} 39. Kh1 {[%emt 0:00:00]} Bf4 {[%emt 0:00:48]} 40. Bc7 {[%emt 0:00:00]} Kf7 {[%emt 0:00:06]} 41. a6 {[%emt 0:00:00]} Be3 {[%emt 0:00:03]} 42. Bb8 {[%emt 0:00:00]} Ke8 {[%emt 0:00:30]} 43. Kxh2 {[%emt 0:00:00]} Kd7 {[%emt 0:00:04]} 44. a7 {[%emt 0:00:00]} Bxa7 {[%emt 0:00:01]} 45. Bxa7 {[%emt 0:00:00]} Kc7 {[%emt 0:00:24]} 46. Kg3 {[%emt 0:00:00]} Kb7 {[%emt 0:00:10]} 47. Be3 {[%emt 0:00:00]} Ka6 {[%emt 0:00:22]} 48. Kh4 {[%emt 0:00:00]} Kb5 {[%emt 0:00:21]} 49. Kg5 {[%emt 0:00:00]} h5 {[%emt 0:00:05]} 50. Kf6 {[%emt 0:00:00]} h4 {[%emt 0:00:05]} 51. Kxe6 {[%emt 0:00:00]} h3 {[%emt 0:00:01]} 52. Bf4 {[%emt 0:00:00]} Kc5 {[%emt 0:00:04]} 53. Kxf5 {[%emt 0:00:00]} Kd5 {[%emt 0:00:01]} 54. e6 {[%emt 0:00:00]} 1-0

[Event "Israeli U18-Team-ch 2024"]
[Site "Rishon LeZion"]
[Date "2024.08.01"]
[Round "3.11"]
[White "Gartenfloys, Mark"]
[Black "Duchan, Yoav"]
[Result "0-1"]
[ECO "A41"]
[WhiteElo "1808"]
[BlackElo "2008"]
[Annotator "RC"]
[PlyCount "48"]
[EventDate "2024.08.01"]
[EventType "team-tourn"]
[EventCountry "ISR"]
[SourceTitle "playchess.com"]
[Source "ChessBase"]
[SourceQuality "1"]
[TimeControl "3000+10"]

1. Nf3 {[%emt 0:00:04]} g6 {[%emt 0:00:01]} 2. d4 {[%emt 0:00:07]} Bg7 {[%emt 0:00:03]} 3. g3 {[%emt 0:00:19]} d6 {[%emt 0:00:04]} 4. Bg2 {[%emt 0:00:04]} Nc6 {[%emt 0:00:05]} 5. O-O {[%emt 0:00:47]} Bd7 {[%emt 0:00:17]} 6. c4 {[%emt 0:00:19]} Qc8 {[%emt 0:00:07]} 7. Re1 {[%emt 0:02:43]} Bh3 {[%emt 0:00:14]} 8. Bh1 {[%emt 0:00:50]} h5 {[%emt 0:00:24]} 9. d5 {[%emt 0:07:06]} Ne5 {[%emt 0:00:18]} 10. Qb3 {[%emt 0:05:05]} Nh6 {[%emt 0:04:03]} 11. Bd2 {[%emt 0:05:09]} Nf5 {[%emt 0:04:48]} 12. Bc3 {[%emt 0:01:07]} h4 {[%emt 0:00:50]} 13. Bxe5 {[%emt 0:04:17]} dxe5 {[%emt 0:00:26]} 14. e4 {[%emt 0:01:33]} Nd4 {[%emt 0:03:42]} 15. Nxd4 {[%emt 0:02:30]} exd4 {[%emt 0:00:04]} 16. e5 {[%emt 0:00:33]} hxg3 {[%emt 0:00:56]} 17. hxg3 {[%emt 0:03:08]} Qf5 {[%emt 0:06:05]} 18. e6 {[%emt 0:05:34]} fxe6 {[%emt 0:01:28]} 19. Qxb7 {[%emt 0:01:24]} O-O {[%emt 0:00:25]} 20. f4 {[%emt 0:04:57]} Rab8 {[%emt 0:01:16]} 21. Qc6 {[%emt 0:01:04]} Rxb2 {[%emt 0:00:11]} 22. Qxe6+ {[%emt 0:00:49]} Qxe6 {[%emt 0:00:18]} 23. dxe6 {[%emt 0:00:01]} d3 {[%emt 0:00:09]} 24. Na3 {[%emt 0:00:34]} Bd4+ {[%emt 0:00:06]} 0-1

[Event "Israeli U18-Team-ch 2024"]
[Site "Rishon LeZion"]
[Date "2024.08.01"]
[Round "3.12"]
[White "Gurevich, Neria"]
[Black "Rabinovich, Yoav"]
[Result "1-0"]
[ECO "D87"]
[WhiteElo "1997"]
[BlackElo "2012"]
[Annotator "RC"]
[PlyCount "127"]
[EventDate "2024.08.01"]
[EventType "team-tourn"]
[EventCountry "ISR"]
[SourceTitle "playchess.com"]
[Source "ChessBase"]
[SourceQuality "1"]
[TimeControl "3000+10"]

1. d4 {[%emt 0:00:03]} Nf6 {[%emt 0:00:01]} 2. c4 {[%emt 0:00:11]} g6 {[%emt 0:00:01]} 3. Nc3 {[%emt 0:00:13]} d5 {[%emt 0:00:01]} 4. cxd5 {[%emt 0:00:20]} Nxd5 {[%emt 0:00:02]} 5. e4 {[%emt 0:00:16]} Nxc3 {[%emt 0:00:02]} 6. bxc3 {[%emt 0:00:12]} Bg7 {[%emt 0:00:01]} 7. Bc4 {[%emt 0:00:21]} c5 {[%emt 0:00:03]} 8. Ne2 {[%emt 0:00:12]} Nc6 {[%emt 0:00:01]} 9. Be3 {[%emt 0:00:18]} O-O {[%emt 0:00:03]} 10. O-O {[%emt 0:00:18]} b6 {[%emt 0:00:26]} 11. Qd2 {[%emt 0:00:54]} Bb7 {[%emt 0:00:01]} 12. Rfd1 {[%emt 0:01:00]} e6 {[%emt 0:00:01]} 13. Rac1 {[%emt 0:00:48]} Na5 {[%emt 0:03:30]} 14. Bd3 {[%emt 0:00:17]} Rc8 {[%emt 0:00:30]} 15. Bh6 {[%emt 0:03:41]} Bxh6 {[%emt 0:00:53]} 16. Qxh6 {[%emt 0:00:08]} cxd4 {[%emt 0:00:02]} 17. cxd4 {[%emt 0:00:41]} Qf6 {[%emt 0:02:34]} 18. e5 {[%emt 0:03:54]} Qg7 {[%emt 0:00:41]} 19. Qe3 {[%emt 0:01:11]} Bd5 {[%emt 0:10:14]} 20. a3 {[%emt 0:08:45]} Nc4 {[%emt 0:02:57]} 21. Bxc4 {[%emt 0:00:33]} Rxc4 {[%emt 0:00:02]} 22. Rxc4 {[%emt 0:01:14]} Bxc4 {[%emt 0:00:02]} 23. Nc3 {[%emt 0:00:24]} f5 {[%emt 0:02:30]} 24. d5 {[%emt 0:05:29]} exd5 {[%emt 0:00:25]} 25. Nxd5 {[%emt 0:04:51]} Rd8 {[%emt 0:01:29]} 26. Nc3 {[%emt 0:03:48]} Rxd1+ {[%emt 0:00:06]} 27. Nxd1 {[%emt 0:00:09]} Qd7 {[%emt 0:02:33]} 28. Nc3 {[%emt 0:00:19]} Qd3 {[%emt 0:06:58]} 29. Qxd3 {[%emt 0:00:40]} Bxd3 {[%emt 0:00:01]} 30. f4 {[%emt 0:00:15]} Kf7 {[%emt 0:00:21]} 31. Kf2 {[%emt 0:00:16]} Bc4 {[%emt 0:02:29]} 32. Ke3 {[%emt 0:00:29]} b5 {[%emt 0:00:08]} 33. Kd4 {[%emt 0:00:18]} Ke6 {[%emt 0:02:06]} 34. a4 {[%emt 0:01:33]} a6 {[%emt 0:00:05]} 35. axb5 {[%emt 0:00:11]} axb5 {[%emt 0:00:16]} 36. Kc5 {[%emt 0:00:07]} Bf1 {[%emt 0:03:14]} 37. g3 {[%emt 0:00:08]} Bc4 {[%emt 0:02:32]} 38. Nxb5 {[%emt 0:00:10]} Ba2 {[%emt 0:00:41]} 39. Nc3 {[%emt 0:02:43]} Bb3 {[%emt 0:00:02]} 40. Ne2 {[%emt 0:00:14]} Ke7 {[%emt 0:01:01]} 41. Nd4 {[%emt 0:00:17]} Ba2 {[%emt 0:00:15]} 42. h3 {[%emt 0:00:57]} h5 {[%emt 0:01:38]} 43. Kc6 {[%emt 0:01:50]} Bc4 {[%emt 0:00:55]} 44. h4 {[%emt 0:02:21]} Ba2 {[%emt 0:01:07]} 45. Kc5 {[%emt 0:00:39]} Bb1 {[%emt 0:00:53]} 46. Kc6 {[%emt 0:00:41]} Ba2 {[%emt 0:00:13]} 47. Kc7 {[%emt 0:00:10]} Bd5 {[%emt 0:00:24]} 48. Nc6+ {[%emt 0:00:21]} Ke6 {[%emt 0:00:03]} 49. Nb4 {[%emt 0:00:03]} Bc4 {[%emt 0:00:12]} 50. Kd8 {[%emt 0:00:03]} Bb5 {[%emt 0:00:11]} 51. Nc2 {[%emt 0:00:19]} Ba4 {[%emt 0:00:14]} 52. Nd4+ {[%emt 0:00:18]} Kd5 {[%emt 0:00:01]} 53. Nf3 {[%emt 0:00:05]} Ke4 {[%emt 0:00:29]} 54. Ng5+ {[%emt 0:00:03]} Ke3 {[%emt 0:00:04]} 55. e6 {[%emt 0:00:01]} Kf2 {[%emt 0:00:13]} 56. e7 {[%emt 0:00:22]} Kxg3 {[%emt 0:00:16]} 57. Nh7 {[%emt 0:00:28]} Kxh4 {[%emt 0:00:14]} 58. Nf6 {[%emt 0:00:01]} Kg3 {[%emt 0:01:29]} 59. Nd7 {[%emt 0:00:04]} Kxf4 {[%emt 0:02:04]} 60. e8=Q Kg5 {[%emt 0:00:00]} 61. Qe7+ {[%emt 0:00:11]} Kh6 {[%emt 0:00:00]} 62. Ne5 {[%emt 0:00:11]} Bc2 {[%emt 0:00:00]} 63. Qf6 {[%emt 0:00:08]} f4 {[%emt 0:00:00]} 64. Qxf4+ {[%emt 0:00:01]} 1-0

[Event "Israeli U18-Team-ch 2024"]
[Site "Rishon LeZion"]
[Date "2024.08.01"]
[Round "3.15"]
[White "Afek, Itay"]
[Black "Abitbul, Matan"]
[Result "0-1"]
[ECO "A07"]
[WhiteElo "1913"]
[BlackElo "2035"]
[Annotator "RC"]
[PlyCount "100"]
[EventDate "2024.08.01"]
[EventType "team-tourn"]
[EventCountry "ISR"]
[SourceTitle "playchess.com"]
[Source "ChessBase"]
[SourceQuality "1"]
[TimeControl "3000+10"]

1. Nf3 {[%emt 0:00:03]} d5 {[%emt 0:00:27]} 2. g3 {[%emt 0:00:07]} g6 {[%emt 0:00:12]} 3. Bg2 {[%emt 0:00:19]} Bg7 {[%emt 0:00:01]} 4. O-O {[%emt 0:00:19]} e5 {[%emt 0:00:05]} 5. d3 {[%emt 0:00:17]} Nc6 {[%emt 0:00:02]} 6. c4 {[%emt 0:01:05]} dxc4 {[%emt 0:00:02]} 7. dxc4 {[%emt 0:00:30]} e4 {[%emt 0:00:01]} 8. Qxd8+ {[%emt 0:02:43]} Nxd8 {[%emt 0:00:03]} 9. Nfd2 {[%emt 0:02:02]} f5 {[%emt 0:00:11]} 10. Nc3 {[%emt 0:03:12]} Ne7 {[%emt 0:00:50]} 11. Rd1 {[%emt 0:02:12]} Ne6 {[%emt 0:03:45]} 12. Nb3 {[%emt 0:01:27]} Bd7 {[%emt 0:02:20]} 13. Be3 {[%emt 0:02:44]} a5 {[%emt 0:13:10]} 14. Nc5 {[%emt 0:05:33]} Nxc5 {[%emt 0:02:43]} 15. Bxc5 {[%emt 0:01:34]} Nc6 {[%emt 0:00:02]} 16. Rac1 {[%emt 0:04:26]} O-O-O {[%emt 0:01:54]} 17. b3 {[%emt 0:01:26]} Be6 {[%emt 0:02:49]} 18. Nd5 {[%emt 0:01:09]} Rd7 {[%emt 0:03:21]} 19. Nf4 {[%emt 0:01:26]} Rxd1+ {[%emt 0:00:46]} 20. Rxd1 {[%emt 0:00:01]} Bf7 {[%emt 0:00:13]} 21. g4 {[%emt 0:01:18]} b6 {[%emt 0:02:35]} 22. Be3 {[%emt 0:02:12]} Ne5 {[%emt 0:03:15]} 23. gxf5 {[%emt 0:01:13]} gxf5 {[%emt 0:00:03]} 24. Nd5 {[%emt 0:00:51]} Kb7 {[%emt 0:03:22]} 25. Bh3 {[%emt 0:04:44]} Ng4 {[%emt 0:01:05]} 26. Bf4 {[%emt 0:00:37]} Rd8 {[%emt 0:00:53]} 27. Ne3 {[%emt 0:03:27]} Rxd1+ {[%emt 0:00:54]} 28. Nxd1 {[%emt 0:00:02]} Bd4 {[%emt 0:01:02]} 29. e3 {[%emt 0:01:27]} Bf6 {[%emt 0:00:22]} 30. Bg2 {[%emt 0:02:14]} Ne5 {[%emt 0:00:57]} 31. Nb2 {[%emt 0:01:07]} Ng6 {[%emt 0:01:33]} 32. Nd1 {[%emt 0:00:37]} Nh4 {[%emt 0:01:45]} 33. f3 {[%emt 0:01:48]} Bh5 {[%emt 0:00:28]} 34. Nf2 {[%emt 0:01:01]} Nxg2 {[%emt 0:00:06]} 35. Kxg2 {[%emt 0:00:01]} Bxf3+ {[%emt 0:00:05]} 36. Kg3 {[%emt 0:00:26]} h5 {[%emt 0:00:16]} 37. h4 {[%emt 0:00:11]} Be2 {[%emt 0:00:57]} 38. Bg5 {[%emt 0:00:18]} Be5+ {[%emt 0:00:16]} 39. Bf4 {[%emt 0:00:01]} Bc3 {[%emt 0:00:15]} 40. Kg2 {[%emt 0:00:26]} Be1 {[%emt 0:01:20]} 41. Bg5 {[%emt 0:00:11]} Kc6 {[%emt 0:00:26]} 42. Nh1 {[%emt 0:00:04]} Kc5 {[%emt 0:00:55]} 43. Be7+ {[%emt 0:00:01]} Kc6 {[%emt 0:00:11]} 44. Ng3 {[%emt 0:00:01]} Bg4 {[%emt 0:00:15]} 45. Bd8 {[%emt 0:00:14]} Kd7 {[%emt 0:00:11]} 46. Bg5 {[%emt 0:00:07]} a4 {[%emt 0:00:08]} 47. bxa4 {[%emt 0:00:17]} Kd6 {[%emt 0:00:07]} 48. Bf4+ {[%emt 0:00:06]} Kc6 {[%emt 0:00:22]} 49. Be5 {[%emt 0:00:14]} Bb4 {[%emt 0:00:20]} 50. Kf2 {[%emt 0:00:15]} Be7 {[%emt 0:00:06]} 0-1

[Event "Israeli U18-Team-ch 2024"]
[Site "Rishon LeZion"]
[Date "2024.08.01"]
[Round "3.16"]
[White "Berlad, Asaf"]
[Black "Pearl, Oliver"]
[Result "1/2-1/2"]
[ECO "B12"]
[WhiteElo "1955"]
[BlackElo "1795"]
[Annotator "RC"]
[PlyCount "63"]
[EventDate "2024.08.01"]
[EventType "team-tourn"]
[EventCountry "ISR"]
[SourceTitle "playchess.com"]
[Source "ChessBase"]
[SourceQuality "1"]
[TimeControl "3000+10"]

1. e4 {[%emt 0:00:08]} c6 {[%emt 0:00:08]} 2. d4 {[%emt 0:00:13]} d5 {[%emt 0:00:10]} 3. e5 {[%emt 0:00:11]} Bf5 {[%emt 0:00:27]} 4. h4 {[%emt 0:00:21]} a6 {[%emt 0:00:37]} 5. g4 {[%emt 0:02:15]} Bd7 {[%emt 0:00:07]} 6. c4 {[%emt 0:02:17]} e6 {[%emt 0:04:29]} 7. Nc3 {[%emt 0:01:12]} dxc4 {[%emt 0:06:13]} 8. Bxc4 {[%emt 0:00:13]} Qc7 {[%emt 0:01:30]} 9. Bf4 {[%emt 0:05:24]} Ne7 {[%emt 0:02:20]} 10. Rc1 {[%emt 0:01:28]} Qa5 {[%emt 0:05:19]} 11. Nge2 {[%emt 0:04:47]} c5 {[%emt 0:09:01]} 12. dxc5 {[%emt 0:05:51]} Bc6 {[%emt 0:05:37]} 13. Rh3 {[%emt 0:03:59]} Nd7 {[%emt 0:02:02]} 14. h5 {[%emt 0:03:24]} O-O-O {[%emt 0:01:19]} 15. Kf1 {[%emt 0:02:19]} Nxe5 {[%emt 0:04:14]} 16. Qb3 {[%emt 0:00:08]} Nxc4 {[%emt 0:03:03]} 17. Qxc4 {[%emt 0:00:17]} Nd5 {[%emt 0:00:45]} 18. Nd4 {[%emt 0:03:28]} Qb4 {[%emt 0:01:38]} 19. Qxb4 {[%emt 0:02:35]} Nxb4 {[%emt 0:00:01]} 20. Nxc6 {[%emt 0:00:12]} Nxc6 {[%emt 0:04:30]} 21. Na4 {[%emt 0:03:41]} e5 {[%emt 0:00:00]} 22. Nb6+ {[%emt 0:00:30]} Kc7 {[%emt 0:00:00]} 23. Bh2 {[%emt 0:00:25]} Bxc5 {[%emt 0:00:00]} 24. Rxc5 {[%emt 0:00:11]} Kxb6 {[%emt 0:00:00]} 25. Rc4 {[%emt 0:01:20]} h6 {[%emt 0:00:00]} 26. Ke2 {[%emt 0:01:18]} Rd4 {[%emt 0:00:00]} 27. Rxd4 {[%emt 0:00:47]} Nxd4+ {[%emt 0:01:10]} 28. Ke3 {[%emt 0:00:17]} f6 {[%emt 0:00:00]} 29. f4 {[%emt 0:00:22]} Nc6 {[%emt 0:00:04]} 30. fxe5 {[%emt 0:00:21]} Nxe5 {[%emt 0:00:14]} 31. Bxe5 {[%emt 0:00:07]} fxe5 {[%emt 0:00:00]} 32. Ke4 {[%emt 0:05:29]} 1/2-1/2